Cogmind - Beta 15 @@@ ROGUE MODE // 2025.05.27 @ 12:14:16 Player: pakman Result: Destroyed by C-17 Slicer with Blade Saw Performance ------------- Evolutions (2) 1000 Regions Visited (4) 800 Robots Destroyed (59) 295 Value Destroyed (1325) 1325 Prototype IDs (3) 60 Alien Tech Used (0) 0 Bonus (0) 0 TOTAL SCORE: 3480 Bonus ------- None Cogmind --------- Core Integrity 0/550 Matter 300/300 Energy 99/100 System Corruption 0% Temperature Cool (0) Movement Core (50) Location -8/Materials Parts ------- > --- POWER (1) -------- (None) > --- PROPULSION (2) --- (None) > --- UTILITY (5) ------ (None) > --- WEAPON (3) ------- (None) > --- INVENTORY (5) ---- Light Nuclear Core Cooling System Peak State ------------ > --- POWER ------------ Light Ion Engine > --- PROPULSION ------- Advanced Treads Advanced Treads > --- UTILITY ---------- Large Storage Unit Advanced Weight Redist. System Salvage Targeting Computer Decoy Drone Bay > --- WEAPON ----------- (None) > --- INVENTORY -------- Light Nuclear Core Cooling System [Rating: 27] Favorites ----------- Power Ion Engine Engine Ion Engine Propulsion Compact Wheel Treads Light Treads Wheel Compact Wheel Utility Large Storage Unit Device Seismic Detector Storage Large Storage Unit Processor Salvage Targeting Computer Protection Light Armor Plating Weapon Autogun Energy Gun Medium Laser Ballistic Gun Autogun Launcher Mini Grenade Launcher Slashing Weapon Axe Build | -11 -10 -10 -9 -8 ------- Run | Yrd Mat Min Mat Mat Slots Evolved 4 | . . . 2 2 Power . | . . . . . Propulsion . | . . . . . Utility 3 | . . . 2 1 Weapon 1 | . . . . 1 Parts Attached 34 | 8 5 1 13 7 Power 5 | 1 1 . 2 1 Engine 5 | 1 1 . 2 1 Core . | . . . . . Reactor . | . . . . . Propulsion 7 | 2 . . 3 2 Treads 5 | 1 . . 2 2 Leg . | . . . . . Wheel 2 | 1 . . 1 . Hover . | . . . . . Flight . | . . . . . Utility 13 | 2 2 . 5 4 Device 6 | 1 . . 2 3 Storage 2 | 1 1 . . . Processor 1 | . . . 1 . Hackware . | . . . . . Protection 4 | . 1 . 2 1 Artifact . | . . . . . Weapon 9 | 3 2 1 3 . Energy Gun 2 | 2 . . . . Energy Cannon . | . . . . . Ballistic Gun 5 | 1 2 . 2 . Ballistic Cannon . | . . . . . Launcher 1 | . . 1 . . Special Weapon . | . . . . . Impact Weapon . | . . . . . Slashing Weapon 1 | . . . 1 . Piercing Weapon . | . . . . . Special Melee Weapon . | . . . . . Unidentified Prototypes 1 | . . . . 1 Parts Lost 20 | . . . 9 11 Power 2 | . . . 1 1 Propulsion 4 | . . . 2 2 Utility 8 | . . . 4 4 Weapon 6 | . . . 2 4 Highest Loss Streak 7 | . . . 7 4 To Critical Strikes . | . . . . . Average Backups 8 | 2 7 12 9 5 Power 2 | . 1 3 2 1 Propulsion 1 | 1 2 2 1 . Utility 2 | . 2 4 2 2 Weapon 2 | . 1 3 2 . Tool/Special . | . . . . . Unused Backups 6 | . 2 . 1 3 Power 1 | . . . . 1 Propulsion 2 | . 1 . . 1 Utility 3 | . 1 . 1 1 Weapon . | . . . . . Tool/Special . | . . . . . Average Slot Usage (%) 94 | . 99 100 96 71 Engine 11 | . 13 14 10 7 Treads 12 | . 14 14 10 10 Wheel 11 | . 14 14 10 4 Device 13 | . 13 14 14 10 Storage 12 | . 14 14 11 8 Processor 3 | . . . 6 8 Protection 5 | . . . 10 7 Energy Gun 4 | . 10 . . . Ballistic Gun 17 | . 17 26 17 8 Slashing Weapon 1 | . . . 2 3 Peak Build Rating 27 | 7 11 12 18 27 Average Rating 12 | 5 8 11 16 17 On Entrance 9 | . 7 11 12 17 Naked Turns 43 | . . . . 43 Heaviest Build 41 | 14 34 32 37 41 Greatest Support 53 | 16 20 20 20 53 Greatest Overweight (x) 8 | . 1 1 8 2 Average Overweight (x) 1 | . . 1 1 . Largest Inventory Capacity 15 | 8 15 15 15 15 Average Capacity 14 | 7 14 15 15 13 Most Carried 14 | 4 12 14 14 9 Average Carried 8 | 2 7 13 10 6 Final Capacity 15 | 8 15 15 15 5 Final Carried 14 | 4 12 14 8 2 Class Distribution -------------------- 100% | Mutant Dominant Class ---------------- Mutant | -10/Materials Mutant | -10/Mines Mutant | -9/Materials Mutant | -8/Materials Resources | -11 -10 -10 -9 -8 ----------- Run | Yrd Mat Min Mat Mat Matter Collected 1274 | 235 264 30 625 120 Remotely . | . . . . . Salvage Created 1592 | 30 418 39 878 227 Parts 110 | 4 22 9 66 9 Haulers Intercepted 2 | . 1 . 1 . Recyclers Shooed 1 | . . . . 1 Parts Field Recycled . | . . . . . Retrieved Matter . | . . . . . Parts Self-Destructed . | . . . . . Prevented . | . . . . . Kills | -11 -10 -10 -9 -8 ------- Run | Yrd Mat Min Mat Mat Combat Hostiles Destroyed 47 | . 8 6 24 9 Melee 5 | . . . 1 4 Guns 22 | . 8 1 13 . AOE 20 | . . 5 10 5 Classes Destroyed 9 | 1 3 1 4 . Worker 4 | . . . 3 1 Builder 2 | . 1 . 1 . Tunneler 1 | 1 . . . . Hauler 2 | . 1 . 1 . Recycler 2 | . . . 2 . Watcher 1 | . . . 1 . Swarmer 21 | . . 6 12 3 Grunt 22 | . 8 . 9 5 Sentry 4 | . . . 3 1 Best Kill Streak 7 | 1 2 3 7 4 Combat Bots Only 5 | . 2 3 5 3 Max Kills in Single Turn 3 | 1 1 3 2 2 Gunslinging . | . . . . . Exploded 3 | . . 3 2 2 Melee 1 | . . . 1 1 Uniques/NPCs Destroyed . | . . . . . Combat | -11 -10 -10 -9 -8 -------- Run | Yrd Mat Min Mat Mat Hostile Shots Fired 371 | . 41 17 171 142 Missed 128 | . 7 8 69 44 Hits 243 | . 34 9 102 98 Melee 4 | . . . . 4 Projectile 239 | . 34 9 102 94 Critical Strikes 4 | . . . 2 2 Damage Taken 3286 | . 425 90 1181 1590 Core 944 | . 204 19 152 569 Absorbed by Shields . | . . . . . Regen/Repaired (Parts) 24 | . 24 . . . Core Remaining (%) 57 | 100 . 10 62 . Volleys Fired 114 | 4 39 5 60 6 Largest 2 | 2 2 2 2 1 Hottest 90 | 70 90 53 53 30 Shots Fired 183 | 8 78 8 83 6 Gun 161 | 8 78 3 72 . Cannon . | . . . . . Launcher 22 | . . 5 11 6 Special . | . . . . . Kinetic 128 | 4 49 3 72 . Thermal 33 | 4 29 . . . Explosive 22 | . . 5 11 6 Electromagnetic . | . . . . . Robot Hit Streak 16 | 2 16 1 10 14 Robot Miss Streak 4 | 1 4 4 4 . Penetration Max . | . . . . . Secondary Targets 1 | . 1 . . . Max Gunslinging Chain 1 | . 1 . . . Shots Hit Robots 122 | 5 47 2 49 19 Core Hits 83 | 2 17 7 40 17 Critical Kills . | . . . . . Critical Parts Destroyed . | . . . . . Critical Strikes 2 | . 1 . . 1 Burn 1 | . 1 . . . Sever 1 | . . . . 1 Melee Attacks 30 | . . . 10 20 Impact . | . . . . . Slashing 30 | . . . 10 20 Piercing . | . . . . . Sneak Attacks 2 | . . . . 2 Combat Hostiles . | . . . . . Follow-up Attacks . | . . . . . Damage Inflicted 3811 | 41 565 275 1741 1189 Guns 1272 | 41 565 13 653 . Cannons . | . . . . . Explosions 1825 | . . 262 1055 508 Melee 644 | . . . 33 611 Ramming 70 | . . . . 70 Kinetic 1032 | 28 338 13 653 . Thermal 240 | 13 227 . . . Explosive 1818 | . . 262 1055 501 Electromagnetic 7 | . . . . 7 Impact . | . . . . . Slashing 644 | . . . 33 611 Piercing . | . . . . . Highest Corruption . | . . . . . Average Corruption . | . . . . . Corruption Purged . | . . . . . Corruption Blocked . | . . . . . Overload Shots . | . . . . . Overflow Damage 157 | . . 3 32 122 Projectiles . | . . . . . Explosions 74 | . . 3 32 39 Melee 83 | . . . . 83 Knockbacks . | . . . . . Impact . | . . . . . Kinetic . | . . . . . Secondary . | . . . . . Self-Inflicted Damage 215 | . . 26 56 133 Shots 9 | . . 2 3 4 Rammed 27 | . . . . 27 Targets Rammed 28 | . . . . 28 Kicked . | . . . . . Crushed 1 | . . . . 1 Highest Temperature 301 | 80 301 12 30 11 Average Temperature 46 | 37 73 9 9 4 Received Heat Transfer 1161 | . 225 . 351 585 Siege Activations . | . . . . . Martial Activations . | . . . . . Shielding Activations . | . . . . . Robots Disrupted . | . . . . . Combat Hostiles . | . . . . . Robots Corrupted . | . . . . . Combat Hostiles . | . . . . . Parts Fried . | . . . . . Impact Corruptions . | . . . . . Robots Melted . | . . . . . Combat Hostiles . | . . . . . Parts Melted 1 | . 1 . . . Heat Transferred 777 | 37 740 . . . Parts Sabotaged . | . . . . . Parts Stolen . | . . . . . Parts Stripped . | . . . . . Power Chain Reactions . | . . . . . Alert | -11 -10 -10 -9 -8 ------- Run | Yrd Mat Min Mat Mat Maximum Alert Level 1 | . . . 1 . Low Security (%) 85 | 100 100 100 56 100 Level 1 14 | . . . 43 . Level 2 . | . . . . . Level 3 . | . . . . . Level 4 . | . . . . . Level 5 . | . . . . . High Security . | . . . . . Max Security . | . . . . . Peak Influence 345 | 5 71 148 345 188 Initial 111 | . . 10 49 111 Average 82 | . 15 24 174 121 Influence Increases 1565 | 5 223 178 803 356 Destroy 0b10 Robot/C 940 | . 160 120 480 180 Destroy 0b10 Robot/NC 60 | 5 10 . 40 5 Destroy Leader 186 | . 42 20 84 40 Trap Triggered on 0b10 20 | . . . 20 . Successful Hack 69 | . 10 . 47 12 Disable Machine 60 | . . . 45 15 Destroy Structure 140 | . 1 38 57 44 Lose Combat Pursuer 90 | . . . 30 60 Influence Decreases 1398 | 5 194 79 666 454 Entered New Map 252 | . . 19 79 154 Time Decay 796 | 5 194 60 347 190 Lost Part 200 | . . . 90 110 Purge Threat 150 | . . . 150 . Squads Dispatched 10 | . 3 . 3 4 Investigation 3 | . 2 . 1 . Extermination . | . . . . . Reinforcement 7 | . 1 . 2 4 Assault . | . . . . . Garrison . | . . . . . Intercept . | . . . . . Searches Triggered . | . . . . . Construction Impeded 2 | . . . 1 1 Haulers Reinforced . | . . . . . Active Scanning Responses . | . . . . . Cargo Convoy Interrupts . | . . . . . Stealth | -11 -10 -10 -9 -8 --------- Run | Yrd Mat Min Mat Mat Distress Signals 4 | . 1 . 3 . Communications Jammed . | . . . . . Distress Signals . | . . . . . Times Spotted 74 | . 13 6 30 25 Peak Tracking Total 13 | . 2 3 6 13 Tactical Retreats 3 | . . . 1 2 Traps | -11 -10 -10 -9 -8 ------- Run | Yrd Mat Min Mat Mat Traps Triggered . | . . . . . Indirectly . | . . . . . Trap Hack Attempts . | . . . . . Triggered . | . . . . . Disarmed . | . . . . . Reprogrammed 4 | . . . 4 . Reused 2 | . . . 2 . Traps Extracted . | . . . . . Installed . | . . . . . Triggered 2 | . . . 2 . Machines | -11 -10 -10 -9 -8 ---------- Run | Yrd Mat Min Mat Mat Machines Disabled 4 | . . . 3 1 Max in Single Turn 2 | . . . 2 1 Machines Repaired . | . . . . . Machines Dismantled . | . . . . . Machines Sabotaged . | . . . . . Overloaded Fab Kills . | . . . . . Hacking | -11 -10 -10 -9 -8 --------- Run | Yrd Mat Min Mat Mat Machines Accessed 13 | . 5 1 6 1 Terminals 9 | . 4 . 5 . Fabricators . | . . . . . Repair Stations 2 | . 1 . 1 . Recycling Units 1 | . . . . 1 Scanalyzers . | . . . . . Garrison Access . | . . . . . Total Hacks 37 | . 15 1 18 3 Successful 24 | . 8 1 12 3 Failed 13 | . 7 . 6 . Catastrophic 1 | . 1 . . . Database Lockouts . | . . . . . Manual 21 | . 11 . 8 2 Terminals 28 | . 13 . 15 . Fabricators . | . . . . . Repair Stations 5 | . 2 . 3 . Recycling Units 3 | . . . . 3 Scanalyzers . | . . . . . Garrison Access . | . . . . . Terminal Hacks 9 | . 2 1 6 . Prototype ID Bank 1 | . . . 1 . Open Door 1 | . . 1 . . Unreport Threat 1 | . . . 1 . Locate Traps 1 | . 1 . . . Reprogram Traps 1 | . . . 1 . Recall Investigation 1 | . . . 1 . Recall Reinforcements 1 | . 1 . . . Zone Layout 2 | . . . 2 . Fabricator Hacks . | . . . . . Repair Station Hacks 3 | . 2 . 1 . Scan Component 2 | . 1 . 1 . Repair 1 | . 1 . . . Recycling Unit Hacks 1 | . . . . 1 Retrieve Components 1 | . . . . 1 Scanalyzer . | . . . . . Garrison Access Hacks . | . . . . . Unauthorized Hacks 9 | . 4 . 5 . Terminals 9 | . 4 . 5 . Assimilate 3 | . 1 . 2 . Botnet 6 | . 3 . 3 . Fabricators . | . . . . . Repair Stations . | . . . . . Recycling Units . | . . . . . Scanalyzers . | . . . . . Garrison Access . | . . . . . Data Cores Recovered . | . . . . . Used . | . . . . . Hacking Detections 11 | . 5 . 5 1 Full Trace Events 5 | . 3 . 1 1 Feedback Events . | . . . . . Feedback Blocked . | . . . . . Robot Schematics Acquired . | . . . . . Robots Built . | . . . . . Authchips . | . . . . . Time . | . . . . . Total Robot Build Rating . | . . . . . Part Schematics Acquired . | . . . . . Parts Built . | . . . . . Authchips . | . . . . . Time . | . . . . . Total Part Build Rating . | . . . . . Parts Repaired 1 | . 1 . . . Time 26 | . 26 . . . Parts Recycled . | . . . . . Recycled Matter . | . . . . . Retrieved Matter . | . . . . . Retrieved Components 5 | . . . . 5 Parts Scanalyzed . | . . . . . Part Schematics Acquired . | . . . . . Parts Damaged . | . . . . . Bothacking | -11 -10 -10 -9 -8 ------------ Run | Yrd Mat Min Mat Mat Used RIF Installer . | . . . . . Robots Hacked . | . . . . . Non-combat . | . . . . . Combat . | . . . . . Robot Hacks Applied . | . . . . . Relay Couplers Released . | . . . . . Fabnet Peak Effective % . | . . . . . Robots Rewired . | . . . . . Allies Hacked . | . . . . . Hacks Repelled . | . . . . . Allies | -11 -10 -10 -9 -8 -------- Run | Yrd Mat Min Mat Mat Total Allies . | . . . . . Largest Group . | . . . . . Highest-Rated Group . | . . . . . Highest-Rated Ally . | . . . . . Total Orders . | . . . . . Ally Attacks . | . . . . . Total Damage . | . . . . . Kills . | . . . . . Allies Corrupted . | . . . . . Allies Melted . | . . . . . Intel | -11 -10 -10 -9 -8 ------- Run | Yrd Mat Min Mat Mat Active Infowar (turns) 1875 | 47 1009 365 253 201 Seismic 1875 | 47 1009 365 253 201 Robot Analysis Total . | . . . . . Derelict Logs Recovered 1 | . . 1 . . Drone Launches . | . . . . . Drone Recoveries . | . . . . . Exploration | -11 -10 -10 -9 -8 ------------- Run | Yrd Mat Min Mat Mat Turns Passed 2856 | 91 1075 365 927 398 Spaces Moved 1190 | 65 410 145 369 201 Core 89 | 1 . . 2 86 Treads 687 | . 265 145 168 109 Legs . | . . . . . Wheels 414 | 64 145 . 199 6 Hover . | . . . . . Flight . | . . . . . Fastest Speed 50 | 50 100 240 115 50 Average Speed 181 | 99 195 240 181 134 Slowest Speed 450 | 100 240 240 450 225 Overloaded Moves . | . . . . . Propulsion Burnouts . | . . . . . Robots Hopped . | . . . . . Potential Cave-ins . | . . . . . Cave-ins Triggered . | . . . . . Exploration Rate (%) 35 | 5 60 52 39 22 Regions Visited 4 Branch Regions 1 Pre-discovered Areas . | . . . . . Known Exits Taken . | . . . . . Unknown Exits Taken 4 | 1 1 1 1 . Scrap Searched . | . . . . . Spaces Dug 11 | . . . 9 2 Terrain Destroyed 160 | . . 58 64 38 Melee 11 | . . . 9 2 Projectile . | . . . . . AOE 149 | . . 58 55 36 Terrain Rammed . | . . . . . Walls Destroyed . | . . . . . Machines Disabled . | . . . . . Actions | -11 -10 -10 -9 -8 --------- Run | Yrd Mat Min Mat Mat Total 1656 | 80 614 154 536 272 Wait 207 | . 136 . 71 . Move 1186 | 64 409 144 368 201 Hop . | . . . . . Pick Up 23 | 4 13 1 4 1 Fast Attach 13 | 7 1 . 2 3 Attach 15 | . . . 9 6 Detach 1 | . . . . 1 Swap 27 | 1 9 4 9 4 Drop 12 | . 7 . 3 2 Fire 114 | 4 39 5 60 6 Melee 30 | . . . 10 20 Ram . | . . . . . Kick . | . . . . . Crush 28 | . . . . 28 Escape Stasis . | . . . . . Rewire . | . . . . . Trap . | . . . . . Miscellaneous . | . . . . . Route ------- -11/Scrapyard -10/Materials (discovered 2 exits: *Mat / *Min) -10/Mines -9/Materials (discovered 2 exits: *Mat x2) -8/Materials (discovered 1 exit: [*Fac]) History --------- Turn | Location | Event 22 | -11/Scrapyard | Discovered new exit (range 16) 92 | -11/Scrapyard | Entered Materials 171 | -10/Materials | Discovered new exit (range 14) 308 | -10/Materials | Build established: Mutant 434 | -10/Materials | Repaired Ion Engine 490 | -10/Materials | Discovered new exit (range 15) 592 | -10/Materials | Derelicts attacked the area 889 | -10/Materials | Core integrity fell below 50% 1016 | -10/Materials | Core integrity fell below 20% 1167 | -10/Materials | Entered Mines 1237 | -10/Mines | Learned Materials emergency access door positions 1317 | -10/Mines | Found the Drone Emporium 1333 | -10/Mines | Found Prototype Device 1485 | -10/Mines | Discovered new exit (range 16) 1532 | -10/Mines | Entered Materials 1532 | -9/Materials | Evolved 2 slots: Utility x2 1858 | -9/Materials | Lost 7 parts (1p2n3u1w) 1867 | -9/Materials | Discovered new exit (range 15) 2380 | -9/Materials | Discovered new exit (range 9) 2459 | -9/Materials | Entered another Materials area 2459 | -8/Materials | Evolved 2 slots: Utility x1, Weapon x1 2693 | -8/Materials | Lost 4 parts (1n2u1w) 2784 | -8/Materials | Lost 4 parts (1p2u1w) 2797 | -8/Materials | Identified Decoy Drone Bay 2808 | -8/Materials | Core integrity fell below 50% 2814 | -8/Materials | Released all parts (6) 2839 | -8/Materials | Core integrity fell below 20% 2852 | -8/Materials | Discovered new exit (range 15) 2857 | -8/Materials | Destroyed by C-17 Slicer with Blade Saw Last Messages --------------- Lgt. Treads Lgt. Treads EM Disruption Field Carbon-fiber Leg Wheel 02804_ Slammed into G-47 Trooper. 02805_ Adv. Treads destroyed. 02809_ K-01 Serf collects debris. 02814_ Released Salvage Targeting Computer. 02814_ Released Lrg. Storage Unit. 02814_ Released Adv. Treads. 02814_ Released Lgt. Ion Engine. 02814_ Released Adv. Weight Redist. System. 02814_ Released Decoy Drone Bay. 02815_ U-05 Engineer builds a Wall. 02832_ ALERT: Suspicious intruders detected, dispatching Cutter reinforcements to area. 02845_ T-07 Excavator is excavating. 02852_ EXIT=FOUND 02853_ T-07 Excavator is excavating. Map ----- +----------------------------------------------------+ | ????????????????????????????????????????? | | ????????????????????????????????????????? | | ????????????????????????????????????????? | | ????????????????????????????????????????? | | ????????????????????????????????????????? | | ????????????????????????????????????????? | | ????????????????????????????????????????? | | ????????????????????????????????????????? | | ????????????????????????????????????????? | | ????????????????????????????????????????? | | ????????????????????????????????????????? | | ????????????????????????????????????????? | | ????????????????????????????????????????? | | ????????????????????????????????????????? | | ????????????????????????????????????????? | | ????????????????????????????????????????? | | ????????????????????????????????????????? | | ????????????????????????????????????????? | | ????????????????????????????????????????? | | ????????????????????????????????????????? | | ????????????????????????????????????????? | | ?????????????????????????????????###???? | | ???????????????????????????????## #??? | | ?????????####+#############/####T# ### | | ?????????# s | | ?????????# < @c cc s | | ?????????# s | | ?????????###########t######+##### #### | | ??????????????????# #??????????# #?##??? | | ??????????????????####??????????# ### ### | | ????????????????????????????????# # == | | ????????????????????????????????# # == | | ????????????????????????????????# # == | | ????????????????????????????????# # | | ????????????????????????????????# # | | ????????????????????????????????# # | | ????????????????????????????????# #####+# | | ????????????????????????????????# #???# | | ????????????????????????????????# #???# | | ????????????????????????????????# #???# | | ????????????????????????????????# #???# | | ????????????????????????????????# #???# | | ????????????????????????????????# ##### | | ????????????????????????????????# | | ????????????????????????????????######### | | ????????????????????????????????????????? | | ????????????????????????????????????????? | | ????????????????????????????????????????? | | ????????????????????????????????????????? | | ????????????????????????????????????????? | +----------------------------------------------------+ Best States ------------- Heat Dissipation 31 Energy Generation 12 Energy Capacity 265 Matter Stores 300 Matter Capacity 300 Sight Range 16 Terrain Scan Density 10 Additional Mass Support 9 Armor Coverage 300 Evasion (%) 50 Recoil Reduction 8 Salvage Targeting 1 Item Schematics ----------------- None Robot Schematics ------------------ None Fabricated ------------ Nothing Repaired ---------- Ion Engine | 60% | -10/Materials Alien Tech Used ----------------- None Achievements -------------- None Challenges ------------ None Game ------ Seed DeliveryTiamatHumpback Manual? 0 Play Time 00:35:02 Cumulative 55.8 hours Start 2025.05.27 @ 11:13:43 End 2025.05.27 @ 12:14:16 Sessions 3 Manual Loads 0 Difficulty Rogue Special Mode None Game No. 60 Rogue 60 Adventurer 0 Explorer 0 Win Type - Total 0 Types 0/0/0/0/0/0/0/0/0/0 Lore% 32 Gallery% 29 Achievement% 26 Wizard Run 0 Options --------- Layout 0 ASCII 0 Keyboard 1 Movement Numpad Keybinds 0 Fullscreen 2 Font 18/SmallcapsGlow Map View 76x50 Zoom Use 0% Tactical HUD 1 Map Filters NONE Filters NONE Steam 1 RUN: dcd63525-feab-4dc0-bdfe-fb6731b7e590